Cogmind - Beta 15 @@@ ROGUE MODE // 2025.06.11 @ 20:22:50 Player: jumpy Result: Destroyed by Y-45 Defender with Beam Rifle Performance ------------- Evolutions (0) 0 Regions Visited (3) 600 Robots Destroyed (30) 150 Value Destroyed (561) 561 Prototype IDs (0) 0 Alien Tech Used (0) 0 Bonus (0) 0 TOTAL SCORE: 1311 Bonus ------- None Cogmind --------- Core Integrity 0/250 Matter 300/300 Energy 99/100 System Corruption 0% Temperature Cool (9) Movement Core (400) Ox7 Location -9/Recycling Parts ------- > --- POWER (1) -------- (None) > --- PROPULSION (2) --- (None) > --- UTILITY (2) ------ Large Storage Unit Seismic Detector > --- WEAPON (2) ------- Makeshift Axe > --- INVENTORY (15) --- Subdweller Monowheel Improved Terrain Scanner Assault Rifle Mining Laser Ripper Peak State ------------ > --- POWER ------------ Subdweller Power Source > --- PROPULSION ------- Wheel Compact Wheel > --- UTILITY ---------- Large Storage Unit Seismic Detector > --- WEAPON ----------- Subdweller Beam Cannon Grenade Launcher > --- INVENTORY -------- Light Ion Engine Subdweller Monowheel Improved Terrain Scanner Beam Cannon Assault Rifle Mining Laser Ripper [Rating: 10] Favorites ----------- Power Ion Engine Engine Ion Engine Propulsion Light Treads Treads Light Treads Wheel Compact Wheel Utility Seismic Detector Device Seismic Detector Storage Large Storage Unit Weapon Assault Rifle Energy Cannon Beam Cannon Ballistic Gun Assault Rifle Launcher Grenade Launcher Slashing Weapon Makeshift Axe Build | -11 -10 -10 -9 ------- Run | Yrd Mat Sub Rec Slots Evolved . | . . . . Power . | . . . . Propulsion . | . . . . Utility . | . . . . Weapon . | . . . . Parts Attached 21 | 8 3 8 2 Power 4 | 2 . 2 . Engine 4 | 2 . 2 . Core . | . . . . Reactor . | . . . . Propulsion 5 | 2 . 2 1 Treads 2 | 2 . . . Leg . | . . . . Wheel 3 | . . 2 1 Hover . | . . . . Flight . | . . . . Utility 4 | 2 2 . . Device 2 | 1 1 . . Storage 2 | 1 1 . . Processor . | . . . . Hackware . | . . . . Protection . | . . . . Artifact . | . . . . Weapon 8 | 2 1 4 1 Energy Gun . | . . . . Energy Cannon 2 | . . 2 . Ballistic Gun 4 | 2 1 1 . Ballistic Cannon . | . . . . Launcher 1 | . . 1 . Special Weapon . | . . . . Impact Weapon . | . . . . Slashing Weapon 1 | . . . 1 Piercing Weapon . | . . . . Special Melee Weapon . | . . . . Unidentified Prototypes . | . . . . Parts Lost 11 | . 1 7 3 Power 2 | . . 2 . Propulsion 4 | . . 2 2 Utility 1 | . 1 . . Weapon 4 | . . 3 1 Highest Loss Streak 3 | . 1 3 3 To Critical Strikes . | . . . . Average Backups 6 | 5 7 6 5 Power . | . 1 . . Propulsion 1 | 1 2 . 1 Utility 1 | 1 1 1 1 Weapon 3 | 1 3 3 3 Tool/Special . | . . . . Unused Backups 4 | . . . 4 Power . | . . . . Propulsion 1 | . . . 1 Utility 1 | . . . 1 Weapon 2 | . . . 2 Tool/Special . | . . . . Average Slot Usage (%) 92 | . 99 95 62 Engine 11 | . 13 12 . Treads 12 | . 28 2 . Wheel 13 | . . 23 18 Device 13 | . 13 14 14 Storage 14 | . 14 14 14 Energy Cannon 5 | . . 7 14 Ballistic Gun 17 | . 28 14 . Launcher 2 | . . 5 . Peak Build Rating 10 | 7 8 10 10 Average Rating 7 | 6 7 7 5 On Entrance 5 | . 7 8 5 Naked Turns . | . . . . Heaviest Build 37 | 15 30 37 24 Greatest Support 40 | 40 40 40 32 Greatest Overweight (x) 1 | 1 . 1 1 Average Overweight (x) . | . . . . Largest Inventory Capacity 15 | 8 15 15 15 Average Capacity 12 | 7 9 15 15 Most Carried 8 | 7 8 8 6 Average Carried 6 | 5 7 6 5 Final Capacity 15 | 8 15 15 15 Final Carried 8 | 7 8 6 5 Class Distribution -------------------- 100% | Mutant Dominant Class ---------------- Mutant | -10/Materials Mutant | -10/Subcaves Mutant | -9/Recycling Resources | -11 -10 -10 -9 ----------- Run | Yrd Mat Sub Rec Matter Collected 789 | 321 167 232 69 Remotely . | . . . . Salvage Created 880 | 186 261 273 160 Parts 58 | 16 23 14 5 Haulers Intercepted . | . . . . Recyclers Shooed 2 | 1 1 . . Parts Field Recycled . | . . . . Retrieved Matter . | . . . . Parts Self-Destructed 11 | . . 11 . Prevented . | . . . . Kills | -11 -10 -10 -9 ------- Run | Yrd Mat Sub Rec Combat Hostiles Destroyed 20 | . 10 10 . Guns 14 | . 10 4 . AOE 6 | . . 6 . Classes Destroyed 7 | 3 2 2 . Worker 1 | 1 . . . Tunneler 4 | 4 . . . Recycler 3 | 1 . . 2 Turret 2 | . . 2 . Swarmer 11 | . 5 6 . Grunt 7 | . 5 2 . Subdweller 2 | . . 2 . Best Kill Streak 3 | 2 3 3 2 Combat Bots Only 3 | . 3 3 . Max Kills in Single Turn 3 | 2 2 3 1 Gunslinging 1 | . 1 . . Exploded 3 | . . 3 . Melee . | . . . . Uniques/NPCs Destroyed . | . . . . Combat | -11 -10 -10 -9 -------- Run | Yrd Mat Sub Rec Hostile Shots Fired 189 | . 60 118 11 Missed 75 | . 20 52 3 Hits 114 | . 40 66 8 Projectile 114 | . 40 66 8 Damage Taken 1315 | . 423 768 124 Core 262 | . 36 193 33 Absorbed by Shields . | . . . . Core Remaining (%) 100 | 100 . . . Volleys Fired 98 | 10 28 56 4 Largest 2 | 2 2 2 1 Hottest 90 | 40 40 90 60 Shots Fired 157 | 20 56 77 4 Gun 117 | 20 56 41 . Cannon 36 | . . 32 4 Launcher 4 | . . 4 . Special . | . . . . Kinetic 117 | 20 56 41 . Thermal 36 | . . 32 4 Explosive 4 | . . 4 . Electromagnetic . | . . . . Robot Hit Streak 12 | 6 6 8 12 Robot Miss Streak 4 | 2 3 4 . Penetration Max . | . . . . Secondary Targets 3 | . 3 . . Max Gunslinging Chain 1 | . 1 . . Shots Hit Robots 96 | 11 35 43 7 Core Hits 44 | 6 18 18 2 Critical Kills 1 | . 1 . . Critical Parts Destroyed . | . . . . Critical Strikes 1 | . 1 . . Destroy 1 | . 1 . . Melee Attacks 4 | . . . 4 Impact . | . . . . Slashing 4 | . . . 4 Piercing . | . . . . Sneak Attacks . | . . . . Combat Hostiles . | . . . . Follow-up Attacks . | . . . . Damage Inflicted 1621 | 148 438 852 183 Guns 890 | 148 427 315 . Cannons 382 | . . 312 70 Explosions 225 | . . 225 . Melee 110 | . . . 110 Ramming 14 | . 11 . 3 Kinetic 890 | 148 427 315 . Thermal 382 | . . 312 70 Explosive 225 | . . 225 . Electromagnetic . | . . . . Impact . | . . . . Slashing 110 | . . . 110 Piercing . | . . . . Highest Corruption . | . . . . Average Corruption . | . . . . Corruption Purged . | . . . . Corruption Blocked . | . . . . Overload Shots . | . . . . Overflow Damage 5 | . . 5 . Projectiles 5 | . . 5 . Explosions . | . . . . Melee . | . . . . Knockbacks . | . . . . Impact . | . . . . Kinetic . | . . . . Secondary . | . . . . Self-Inflicted Damage 14 | . . 13 1 Shots 1 | . . 1 . Rammed 4 | . 3 . 1 Targets Rammed 4 | . 3 . 1 Kicked . | . . . . Crushed . | . . . . Highest Temperature 30 | . 6 18 30 Average Temperature 8 | . 3 8 13 Received Heat Transfer 558 | . 156 366 36 Siege Activations . | . . . . Martial Activations . | . . . . Shielding Activations . | . . . . Robots Disrupted . | . . . . Combat Hostiles . | . . . . Robots Corrupted . | . . . . Combat Hostiles . | . . . . Parts Fried . | . . . . Impact Corruptions . | . . . . Robots Melted . | . . . . Combat Hostiles . | . . . . Parts Melted . | . . . . Heat Transferred 777 | . . 629 148 Parts Sabotaged . | . . . . Parts Stolen . | . . . . Parts Stripped . | . . . . Power Chain Reactions . | . . . . Alert | -11 -10 -10 -9 ------- Run | Yrd Mat Sub Rec Maximum Alert Level . | . . . . Low Security (%) 100 | 100 100 . 100 Level 1 . | . . . . Level 2 . | . . . . Level 3 . | . . . . Level 4 . | . . . . Level 5 . | . . . . High Security . | . . . . Max Security . | . . . . Peak Influence 114 | 10 114 . 37 Initial 37 | . . . 37 Average 21 | . 33 . 6 Influence Increases 582 | 30 277 265 10 Destroy 0b10 Robot/C 400 | . 200 200 . Destroy 0b10 Robot/NC 40 | 30 . . 10 Destroy Leader 50 | . 30 20 . Successful Hack 31 | . 31 . . Destroy Structure 1 | . 1 . . Lose Combat Pursuer 60 | . 15 45 . Influence Decreases 582 | 30 235 229 88 Entered New Map 62 | . . 21 41 Time Decay 472 | 30 227 168 47 Lost Part 48 | . 8 40 . Squads Dispatched 1 | . 1 . . Investigation . | . . . . Extermination . | . . . . Reinforcement 1 | . 1 . . Assault . | . . . . Garrison . | . . . . Intercept . | . . . . Searches Triggered . | . . . . Construction Impeded . | . . . . Haulers Reinforced . | . . . . Active Scanning Responses . | . . . . Cargo Convoy Interrupts . | . . . . Stealth | -11 -10 -10 -9 --------- Run | Yrd Mat Sub Rec Distress Signals . | . . . . Communications Jammed . | . . . . Distress Signals . | . . . . Times Spotted 31 | . 13 16 2 Peak Tracking Total 6 | . 4 6 2 Tactical Retreats 3 | . 1 2 . Traps | -11 -10 -10 -9 ------- Run | Yrd Mat Sub Rec Traps Triggered 2 | . 1 1 . Indirectly . | . . . . Trap Hack Attempts . | . . . . Triggered . | . . . . Disarmed . | . . . . Reprogrammed . | . . . . Reused . | . . . . Traps Extracted . | . . . . Installed . | . . . . Triggered . | . . . . Machines | -11 -10 -10 -9 ---------- Run | Yrd Mat Sub Rec Machines Disabled 1 | . . 1 . Max in Single Turn 1 | . . 1 . Machines Repaired . | . . . . Machines Dismantled . | . . . . Machines Sabotaged . | . . . . Overloaded Fab Kills . | . . . . Hacking | -11 -10 -10 -9 --------- Run | Yrd Mat Sub Rec Machines Accessed 6 | . 3 . 3 Terminals 6 | . 3 . 3 Fabricators . | . . . . Repair Stations . | . . . . Recycling Units . | . . . . Scanalyzers . | . . . . Garrison Access . | . . . . Total Hacks 13 | . 6 . 7 Successful 7 | . 4 . 3 Failed 6 | . 2 . 4 Catastrophic . | . . . . Database Lockouts . | . . . . Manual 13 | . 6 . 7 Terminals 13 | . 6 . 7 Fabricators . | . . . . Repair Stations . | . . . . Recycling Units . | . . . . Scanalyzers . | . . . . Garrison Access . | . . . . Terminal Hacks . | . . . . Fabricator Hacks . | . . . . Repair Station Hacks . | . . . . Recycling Unit Hacks . | . . . . Scanalyzer . | . . . . Garrison Access Hacks . | . . . . Unauthorized Hacks 7 | . 4 . 3 Terminals 7 | . 4 . 3 Botnet 1 | . 1 . . Skim 6 | . 3 . 3 Fabricators . | . . . . Repair Stations . | . . . . Recycling Units . | . . . . Scanalyzers . | . . . . Garrison Access . | . . . . Data Cores Recovered . | . . . . Used . | . . . . Hacking Detections 3 | . 2 . 1 Full Trace Events . | . . . . Feedback Events . | . . . . Feedback Blocked . | . . . . Robot Schematics Acquired . | . . . . Robots Built . | . . . . Authchips . | . . . . Time . | . . . . Total Robot Build Rating . | . . . . Part Schematics Acquired . | . . . . Parts Built . | . . . . Authchips . | . . . . Time . | . . . . Total Part Build Rating . | . . . . Parts Repaired . | . . . . Time . | . . . . Parts Recycled . | . . . . Recycled Matter . | . . . . Retrieved Matter . | . . . . Retrieved Components . | . . . . Parts Scanalyzed . | . . . . Part Schematics Acquired . | . . . . Parts Damaged . | . . . . Bothacking | -11 -10 -10 -9 ------------ Run | Yrd Mat Sub Rec Used RIF Installer . | . . . . Robots Hacked . | . . . . Non-combat . | . . . . Combat . | . . . . Robot Hacks Applied . | . . . . Relay Couplers Released . | . . . . Fabnet Peak Effective % . | . . . . Robots Rewired . | . . . . Allies Hacked . | . . . . Hacks Repelled . | . . . . Allies | -11 -10 -10 -9 -------- Run | Yrd Mat Sub Rec Total Allies . | . . . . Largest Group . | . . . . Highest-Rated Group . | . . . . Highest-Rated Ally . | . . . . Total Orders . | . . . . Ally Attacks . | . . . . Total Damage . | . . . . Kills . | . . . . Allies Corrupted . | . . . . Allies Melted . | . . . . Intel | -11 -10 -10 -9 ------- Run | Yrd Mat Sub Rec Active Infowar (turns) 1921 | 175 698 780 268 Seismic 1921 | 175 698 780 268 Robot Analysis Total . | . . . . Derelict Logs Recovered . | . . . . Drone Launches . | . . . . Drone Recoveries . | . . . . Exploration | -11 -10 -10 -9 ------------- Run | Yrd Mat Sub Rec Turns Passed 2006 | 241 717 780 268 Spaces Moved 1282 | 122 374 565 221 Core 7 | 7 . . . Treads 516 | 115 374 27 . Legs . | . . . . Wheels 759 | . . 538 221 Hover . | . . . . Flight . | . . . . Fastest Speed 50 | 50 160 105 100 Average Speed 128 | 154 160 109 109 Slowest Speed 240 | 160 160 240 115 Overloaded Moves . | . . . . Propulsion Burnouts . | . . . . Robots Hopped . | . . . . Potential Cave-ins . | . . . . Cave-ins Triggered . | . . . . Exploration Rate (%) 35 | 7 48 40 48 Regions Visited 3 Branch Regions 2 Pre-discovered Areas . | . . . . Known Exits Taken . | . . . . Unknown Exits Taken 3 | 1 1 1 . Scrap Searched . | . . . . Spaces Dug 1 | . . 1 . Terrain Destroyed 19 | . . 19 . Melee . | . . . . Projectile 1 | . . 1 . AOE 18 | . . 18 . Terrain Rammed . | . . . . Walls Destroyed . | . . . . Machines Disabled . | . . . . Actions | -11 -10 -10 -9 --------- Run | Yrd Mat Sub Rec Total 1469 | 151 434 646 238 Wait 40 | 5 20 9 6 Move 1279 | 121 373 564 221 Hop . | . . . . Pick Up 12 | 7 2 3 . Fast Attach 12 | 7 3 1 1 Attach 7 | . 1 5 1 Detach . | . . . . Swap 7 | 1 2 4 . Drop 6 | . 2 4 . Fire 98 | 10 28 56 4 Melee 4 | . . . 4 Ram 1 | . . . 1 Kick . | . . . . Crush 3 | . 3 . . Escape Stasis . | . . . . Rewire . | . . . . Trap . | . . . . Miscellaneous . | . . . . Route ------- -11/Scrapyard -10/Materials (discovered 3 exits: [*Mat] / [*Min] / [*Sub]) -10/Subcaves -9/Recycling History --------- Turn | Location | Event 5 | -11/Scrapyard | Discovered new exit (range 15) 242 | -11/Scrapyard | Entered Materials 300 | -10/Materials | Build established: Mutant 593 | -10/Materials | Discovered new exit (range 5) 715 | -10/Materials | Discovered new exit (range 11) 811 | -10/Materials | Discovered new exit (range 15) 959 | -10/Materials | Entered Subcaves 960 | -10/Subcaves | Approached by a straggling Scientist 1305 | -10/Subcaves | A swath of the cavern ceiling suddenly collapsed 1450 | -10/Subcaves | Shifting Twisted Machinery released Sub. Beam Cannon 1467 | -10/Subcaves | Shifting Twisted Machinery released Sub. Monowheel 1502 | -10/Subcaves | Shifting Twisted Machinery released Scrap Shield 1503 | -10/Subcaves | Shifting Twisted Machinery released Ripper 1657 | -10/Subcaves | Core integrity fell below 50% 1689 | -10/Subcaves | Core integrity fell below 20% 1717 | -10/Subcaves | Discovered new exit (range 15) 1738 | -10/Subcaves | Lost 3 parts (1p1n1w) 1739 | -10/Subcaves | Entered Recycling 2007 | -9/Recycling | Destroyed by Y-45 Defender with Beam Rifle Last Messages --------------- Please expand to 3 more systems! 01829_ Connecting with Terminal... >>Trojan(Skim) Trojan loaded successfully. Testing... Terminal linked with 2 systems. Please expand to 2 more systems! 01901_ R-06 Scavenger destroyed. 01905_ R-06 Scavenger collects Lgt. Ion Engine. 01906_ Acquired 59 matter. 01909_ R-06 Scavenger collects Com. Wheel. 01910_ R-06 Scavenger destroyed. 01913_ Acquired Com. Wheel. 01918_ Acquired 10 matter. 01923_ R-06 Scavenger collects Tractor Beam. 01982_ Y-45 Defender springs to life. 01991_ Slammed into U-05 Engineer. 02001_ Com. Wheel destroyed. 02001_ Beam Cannon destroyed. 02004_ Com. Wheel destroyed. Map ----- +----------------------------------------------------+ | " ## !!######+######???????????????????????????? | | * #???????????????????????????? | | % #???????????????????????????? | | ! * #???????????????????????????? | | #########T#####+######???????????????????????????? | | #"""#???#### #????????????????????????????? | | #"T"######?# #????????????????????????????? | | #?# #????????????????????????????? | | """ #?# #????????????????????????????? | | """ #?# #????????????????????????????? | | """ ### #????????????????????????????? | | """ "Y" ## #????????????????????????????? | | """ """ ### #????###?????????????????????? | | #?# #??? ?????????????????????? | | ##########?#######+##??? #????????????????????? | | ?????????????????# #???? #????????????????????? | | ?????????????????# #???? #????????????????????? | | ?????????????????# #???# #????????????????????? | | ?????????????????# #???# #????????????????????? | | ?????????????????# ##### #????????????????????? | | ????????????????? /r #????????????????????? | | ?????????????????# ## #????????????????????? | | ?????????????????# ##"" #????????????????????? | | ????????????????## ##"T #????????????????????? | | ????????????????# ##"" #????????????????????? | | ################## # @ #????????????????????? | | + ####Y##### #???????????????? | | """" ######### #??#% #???????????????? | | """" #???????# #### r #???????????????? | | """" #???????# """ #???????????????? | | #???????# """ ????????????? | | """" #???????# """ ??????????? | | """" #???????# ### ?????????? | | """" #???????# #?# ?????????? | | ? #???????# #??######## #"????????????? | | ??? #???????# #?????????????????????????? | | ??#####???????###!!!####?????????????????????????? | | ????????????????#! !#????????????????????????????? | | ????????????????#####????????????????????????????? | | | | | | | | | | | | | | | | | | | | | | | +----------------------------------------------------+ Best States ------------- Heat Dissipation 25 Energy Generation 15 Energy Capacity 250 Matter Stores 300 Matter Capacity 300 Sight Range 16 Terrain Scan Density 10 Evasion (%) 40 Recoil Reduction 2 Item Schematics ----------------- None Robot Schematics ------------------ None Fabricated ------------ Nothing Repaired ---------- Nothing Alien Tech Used ----------------- None Achievements -------------- None Challenges ------------ None Game ------ Seed FluxMiningSource Manual? 0 Play Time 00:16:35 Cumulative 124.3 hours Start 2025.06.11 @ 20:02:21 End 2025.06.11 @ 20:22:50 Sessions 1 Manual Loads 0 Difficulty Rogue Special Mode None Game No. 324 Rogue 324 Adventurer 0 Explorer 0 Win Type - Total 3 Types 2/0/1/0/0/0/0/0/0/0 Lore% 61 Gallery% 53 Achievement% 45 Wizard Run 0 Options --------- Layout 0 ASCII 0 Keyboard 0 Movement Numpad Keybinds 0 Fullscreen 2 Font 18/Terminus Map View 76x50 Zoom Use 0% Tactical HUD 1 Map Filters NONE Filters NONE Steam 1 RUN: 5d0a4e48-e296-4d31-bc01-726edaa0a642